fUSD/lending_fUSD_20250720
["ID","MTS","AMOUNT","RATE_DAILY","PERIOD"]
[373425615,1753000237691,-1500.0,0.00016848,2]
[373425616,1753000237700,-895.0,0.0001685,2]
[373425617,1753000237710,-153.59,0.00016856,2]
[373425618,1753000237719,-153.59,0.00016868,2]
[373425619,1753000237727,-153.59,0.00016881,2]
[373425620,1753000237738,-150.0,0.00016883,2]
[373425621,1753000237746,-1226.0,0.00016912,2]
[373425622,1753000237756,-233.0,0.00016914,2]
[373425623,1753000237765,-228.81610879,0.00016969,2]
[373425624,1753000237774,-3054.45816867,0.00017,2]
[373425681,1753000238316,-16352.16778425,0.00017,2]
[373425683,1753000238327,-994.76385173,0.00017,2]
[373425685,1753000238339,-17298.000006,0.00017,2]
[373425688,1753000238358,-261.66068411,0.00017,2]
[373425696,1753000238426,-16930.61625565,0.00017,2]
[373425700,1753000238456,-1521.67650371,0.00017,2]
[373425702,1753000238467,-1184.1340582,0.00017,2]
[373425704,1753000238478,-2364.6,0.00017,2]
[373425707,1753000238508,-1191.59393994,0.00017,2]
[373425709,1753000238517,-460.0,0.00017069,2]
[373425711,1753000238526,-150.0,0.0001707,2]
[373425713,1753000238535,-300.87,0.00017078,2]
[373425715,1753000238545,-782.0,0.00017152,2]
[373425717,1753000238554,-500.0,0.00017178,2]
[373425719,1753000238563,-169.59,0.00017211,2]
[373425721,1753000238572,-217.0,0.00017236,2]
[373425723,1753000238582,-7407.141672,0.00017276,2]
[373425725,1753000238591,-464.65,0.00017288,2]
[373425727,1753000238600,-254.0,0.0001732,2]
[373425729,1753000238609,-462.0,0.00017403,2]
[373425731,1753000238618,-150.0,0.00017425,2]
[373425733,1753000238628,-465.03,0.00017464,2]
[373425735,1753000238637,-2023.68,0.00017482,2]
[373425737,1753000238646,-305.0,0.00017487,2]
[373425739,1753000238655,-1498.36911292,0.000175,2]
[373425741,1753000238665,-5888.0,0.00017516,2]
[373425743,1753000238680,-1498.36911284,0.0001752,2]
[373425745,1753000238690,-1546.0,0.00017535,2]
[373425747,1753000238699,-1498.36911284,0.0001754,2]
[373425749,1753000238709,-1716.0,0.00017571,2]
[373425751,1753000238720,-2500.0,0.0001758,2]
[373425753,1753000238729,-335.31856971,0.00017582,2]
[373425755,1753000238738,-189.53689201,0.00017582,2]
[373425757,1753000238748,-241.07656811,0.00017582,2]
[373425759,1753000238758,-645.14951585,0.00017582,2]
[373425761,1753000238768,-335.31856967,0.00017593,2]
[373425763,1753000238777,-3380.66523583,0.000176,2]
[373425766,1753000238798,-305.6416,0.000176,2]
[373425768,1753000238809,-32979.69316417,0.000176,2]
[373425769,1753000238818,-1000.0,0.000176,2]
[373425770,1753000238827,-1066.94545,0.000176,2]
[373425771,1753000238836,-1000.0,0.00017603,2]
[373425772,1753000238845,-2500.0,0.00017603,2]
[373425773,1753000238854,-335.31856967,0.00017604,2]
[373425774,1753000238863,-335.31856967,0.00017615,2]
[373425775,1753000238873,-335.31856967,0.00017626,2]
[373425776,1753000238882,-335.31856967,0.00017638,2]
[373425777,1753000238891,-200.0,0.0001764,2]
[373425778,1753000238900,-1546.0,0.00017645,2]
[373425779,1753000238909,-335.31856967,0.00017649,2]
[373425780,1753000238918,-561.0,0.00017654,2]
[373425781,1753000238927,-335.31856967,0.0001766,2]
[373425782,1753000238936,-335.31856967,0.00017671,2]
[373425783,1753000238945,-240.0,0.00017671,2]
[373425784,1753000238954,-2334.1001,0.00017671,2]
[373425785,1753000238963,-755.4025,0.00017671,2]
[373425786,1753000238972,-235715.40195288,0.0001768,2]
[373425879,1753000239848,-788.43880644,0.00017488,2]
[373425881,1753000239857,-1301.97017014,0.0001768,2]
[373425884,1753000239870,-1354.75149399,0.0001768,2]
[373425886,1753000239883,-903.67598386,0.0001768,2]
[373425890,1753000239915,-10724.20039913,0.0001768,2]
[373425892,1753000239924,-3696.6555,0.00017682,2]
[373425894,1753000239933,-1000.0,0.00017682,2]
[373425896,1753000239943,-1000.0,0.00017682,2]
[373425898,1753000239953,-293.3276,0.00017682,2]
[373425900,1753000239965,-5000.0,0.00017682,2]
[373425902,1753000239974,-14952.34338728,0.00017682,2]
[373425906,1753000239995,-949.07564,0.00017682,2]
[373425908,1753000240006,-895.46971135,0.00017682,2]
[373425910,1753000240017,-549.84085503,0.00017682,2]
[373425913,1753000240033,-473.16,0.00017682,2]
[373425915,1753000240044,-12042.8900149,0.00017682,2]
[373425922,1753000240098,-388.31951646,0.00017682,2]
[373426164,1753000242574,-447.0,0.000175,2]
[373426166,1753000242583,-376.3733,0.00017571,2]
[373426168,1753000242592,-20.54743043,0.00017682,2]
[373426170,1753000242603,-901.14,0.00017682,2]
[373426172,1753000242614,-1479.41496,0.00017682,2]
[373426177,1753000242656,-1498.36911284,0.00017561,2]
[373426179,1753000242666,-2122.87088716,0.00017682,2]
[373426183,1753000242695,-655.12209739,0.00017682,2]
[373426185,1753000242704,-155.76146031,0.00017682,2]
[373426187,1753000242713,-6235.1323912,0.00017682,2]
[373426189,1753000242725,-2183.06984304,0.00017682,2]
[373426191,1753000242736,-254.39513532,0.00017682,2]
[373426194,1753000242752,-36019.91299852,0.00017682,2]
[373426196,1753000242762,-335.31856967,0.00017682,2]
[373426198,1753000242771,-207.43087061,0.00017682,2]
[373426200,1753000242780,-4668.2049467,0.00017682,2]
[373426202,1753000242790,-253.72430752,0.00017682,2]
[373426204,1753000242799,-420.0,0.00017716,2]
[373426206,1753000242808,-1066.94545,0.0001772,2]
[373426208,1753000242818,-866.0,0.00017738,2]
[373426210,1753000242827,-2014.14600528,0.0001776,2]
[373426212,1753000242836,-205.63093195,0.00017773,2]
[373426214,1753000242845,-500.0,0.00017773,2]
[373426216,1753000242855,-500.0,0.00017773,2]
[373426218,1753000242864,-500.0,0.00017773,2]
[373426220,1753000242873,-25377.8228199,0.00017778,2]
[373426222,1753000242884,-421.40969061,0.0001778,2]
[373426224,1753000242893,-623.05723799,0.0001778,2]
[373426226,1753000242903,-150.0,0.00017781,2]
[373426228,1753000242912,-300.0,0.00017781,2]
[373426230,1753000242921,-300.0,0.00017781,2]
[373426232,1753000242930,-541202.47906312,0.00017781,2]
[373426242,1753000243016,-2005.3440026,0.00017781,2]
[373426245,1753000243028,-2611.17966225,0.00017781,2]
[373426247,1753000243039,-368.6684,0.00017781,2]
[373426251,1753000243066,-420.07536801,0.00017781,2]
[373426253,1753000243076,-10473.69002335,0.00017781,2]
[373426255,1753000243087,-3489.4,0.00017781,2]
[373426528,1753000245759,-48463.41552508,0.00017781,2]
[373426530,1753000245771,-31895.34379578,0.00017781,2]
[373426551,1753000245971,-3571.39582,0.00017781,2]
[373426563,1753000246080,-10312.63249608,0.00017781,2]
[373426565,1753000246090,-25110.51828651,0.00017781,2]
[373426567,1753000246099,-46725.01928969,0.00017782,2]
[373426692,1753000282479,347.81,0.000229,31]
[373426693,1753000282541,347.81,0.000229,31]
[373426694,1753000282603,347.81,0.000229,31]
[373426695,1753000282664,347.81,0.000229,31]
[373426696,1753000282738,347.81,0.000229,31]
[373426697,1753000282855,347.81,0.000229,31]
[373426698,1753000283164,347.81,0.000229,31]
[373426699,1753000283240,347.81,0.000229,31]
[373426700,1753000283337,347.81,0.000229,31]
[373426701,1753000283406,347.81,0.000229,31]
[373426702,1753000283471,347.81,0.000229,31]
[373426703,1753000283523,347.81,0.000229,31]
[373426704,1753000283590,347.81,0.000229,31]
[373426705,1753000283655,347.81,0.000229,31]
[373426706,1753000283720,347.81,0.000229,31]
[373426707,1753000287017,347.81,0.000229,31]
[373426708,1753000295140,737.0,0.0003013,120]
[373426709,1753000298277,1869.0,0.0003013,120]
[373426710,1753000299053,173.0,0.0003013,120]
[373426711,1753000307111,250.0,0.00015,2]
[373426712,1753000395028,500.0,0.00025101,120]
[373426713,1753000395392,500.0,0.00027826,120]
[373426714,1753000395787,223.257221,0.00029926,120]
[373426715,1753000521399,608.7702253,0.00030136,120]
[373426716,1753000589311,490.0,0.00015558,2]
[373426717,1753000589344,22.0,0.00015558,2]
[373426718,1753000686717,200.0,0.0003013,120]
[373426719,1753000698954,200.0,0.0003013,120]
[373426720,1753000708422,200.0,0.0003013,120]
[373426721,1753000722031,200.0,0.0003013,120]
[373426722,1753000722453,1153.0,0.0003013,120]
[373426723,1753000723290,1863.0,0.0003013,120]
[373426724,1753000724247,684.0,0.0003013,120]
[373426725,1753000732332,200.0,0.0003013,120]
[373426726,1753000747759,300.0,0.0003013,120]
[373426727,1753000791809,2236.74772525,0.00030136,120]
[373426728,1753000823974,276.0,0.0003013,120]
[373426729,1753000894924,292.19,0.000229,31]
[373426730,1753000894981,292.19,0.000229,31]
[373426731,1753000895046,292.19,0.000229,31]
[373426732,1753000895117,292.19,0.000229,31]
[373426733,1753000895187,292.19,0.000229,31]
[373426734,1753000895252,292.19,0.000229,31]
[373426735,1753000895319,292.19,0.000229,31]
[373426736,1753000895383,292.19,0.000229,31]
[373426737,1753000895452,292.19,0.000229,31]
[373426738,1753000895633,292.19,0.000229,31]
[373426739,1753000895764,292.19,0.000229,31]
[373426740,1753000895817,292.19,0.000229,31]
[373426741,1753000895917,292.19,0.000229,31]
[373426742,1753000896033,292.19,0.000229,31]
[373426743,1753000896283,292.19,0.000229,31]
[373426744,1753000896342,292.19,0.000229,31]
[373426748,1753001006415,150.0,0.00030136,120]
[373426751,1753001119841,172.11238225,0.00015558,2]
[373426752,1753001122934,186.45508077,0.00015558,2]
[373426753,1753001124035,151.0,0.00015558,2]
[373426754,1753001148962,540.11076331,0.00015903,2]
[373426755,1753001152637,1032.21524405,0.00015903,2]
[373426757,1753001165400,971.11538747,0.0003,120]
[373426762,1753001229464,235.38,0.00013699,2]
[373426766,1753001320232,949.0,0.0003013,120]
[373426767,1753001321048,979.0,0.0003013,120]
[373426768,1753001321830,633.0,0.0003013,120]
[373426769,1753001322889,-174.71,0.00016003,2]
[373426770,1753001324390,-40.36411164,0.00016003,2]
[373426771,1753001324414,-127.50855513,0.00016003,2]
[373426772,1753001327974,640.0,0.00030136,120]
[373426773,1753001339655,-22.49144487,0.00016003,2]
[373426774,1753001339678,-150.0,0.00016003,2]
[373426775,1753001339700,-150.0,0.00016003,2]
[373426776,1753001339722,-150.0,0.00016003,2]
[373426777,1753001350594,1211.2188979,0.00030037,120]
[373426778,1753001351680,-206.71471392,0.00016276,2]
[373426779,1753001351701,-0.24952491,0.00016293,2]
[373426780,1753001356841,-212.28163054,0.00016293,2]
[373426781,1753001359112,-151.59514972,0.00016293,2]
[373426782,1753001363132,-151.006911,0.00016293,2]
[373426783,1753001364927,-177.19678383,0.00016293,2]
[373426784,1753001364952,-177.44162375,0.00016303,2]
[373426785,1753001367797,-72.55837625,0.00016303,2]
[373426786,1753001367819,-168.44852954,0.00016326,2]
[373426787,1753001370073,-411.45857326,0.00016326,2]
[373426788,1753001373482,-114.0728972,0.00016326,2]
[373426789,1753001373505,-129.98483806,0.0001634,2]
[373426790,1753001376368,-166.1554408,0.0001634,2]
[373426793,1753001379457,1160.0,0.0003013,120]
[373426794,1753001379608,-449.45614243,0.0001634,2]
[373426795,1753001380812,500.0,0.0003013,120]
[373426796,1753001381615,717.0,0.0003013,120]
[373426797,1753001382556,-245.13600653,0.0001634,2]
[373426798,1753001384177,-9.26757218,0.0001634,2]
[373426799,1753001384199,-220.25046435,0.00016376,2]
[373426800,1753001385930,-245.22068529,0.00016376,2]
[373426801,1753001388877,-343.91465065,0.00016376,2]
[373426802,1753001391079,-399.7066753,0.00016376,2]
[373426803,1753001392903,-192.0695905,0.00016376,2]
[373426804,1753001395960,-155.40564633,0.00016376,2]
[373426805,1753001400400,-300.0,0.00016376,2]
[373426809,1753001404609,-143.43228758,0.00016376,2]
[373426810,1753001404634,-56.16023385,0.00016404,7]
[373426811,1753001408206,-133.83976615,0.00016404,7]
[373426812,1753001408229,-159.15,0.00016405,2]
[373426813,1753001408252,-7.49826926,0.00016409,2]
[373426814,1753001410127,-334.75930294,0.00016409,2]
[373426815,1753001414773,-215.9024278,0.00016409,2]
[373426816,1753001414796,-48.47084959,0.0001642,2]
[373426817,1753001416902,-203.86915041,0.0001642,2]
[373426818,1753001416930,-38.78924139,0.00016438,2]
[373426826,1753001432001,-151.0,0.00016438,2]
[373426827,1753001432010,-348.73199999,0.00016438,2]
[373426828,1753001432043,-278.47875862,0.00016438,2]
[373426829,1753001432055,-300.0,0.00016444,2]
[373426830,1753001432065,-1200.0,0.00016446,2]
[373426831,1753001432075,-194.28367877,0.00016448,2]
[373426832,1753001432107,-5.71632123,0.00016448,2]
[373426833,1753001432117,-818.37,0.00016456,2]
[373426834,1753001432127,-150.0,0.00016474,2]
[373426835,1753001432139,-150.0,0.00016484,2]
[373426836,1753001432149,-1200.0,0.00016545,2]
[373426837,1753001432158,-300.0,0.00016545,2]
[373426838,1753001432168,-6877.1,0.00016546,2]
[373426839,1753001432179,-150.0,0.00016604,2]
[373426840,1753001432189,-1114.09868328,0.00016641,2]
[373426841,1753001432198,-7142.856,0.00016664,2]
[373426842,1753001432208,-600.0,0.00016664,2]
[373426843,1753001432217,-231.28369723,0.00016664,2]
[373426844,1753001432226,-150.0,0.00016716,2]
[373426845,1753001432236,-150.0,0.00016745,2]
[373426846,1753001432245,-229.0,0.00016767,3]
[373426847,1753001432255,-678.60535193,0.000169,2]
[373426848,1753001432264,-165.41,0.00016922,2]
[373426849,1753001432273,-1511.0,0.00016934,2]
[373426850,1753001432282,-678.60535169,0.00016934,2]
[373426851,1753001432291,-678.60535169,0.00016969,2]
[373426852,1753001432301,-327.33724433,0.00016985,2]
[373426853,1753001432311,-2545.0,0.00017,2]
[373426854,1753001432321,-678.60535169,0.00017003,2]
[373426855,1753001432330,-453.0,0.00017017,2]
[373426856,1753001432340,-678.60535169,0.00017038,2]
[373426857,1753001432350,-678.60535169,0.00017072,2]
[373426858,1753001432359,-1409.0,0.00017087,2]
[373426859,1753001432369,-220.0,0.000171,2]
[373426860,1753001432378,-678.60535169,0.00017107,2]
[373426861,1753001432389,-678.60535169,0.00017141,2]
[373426862,1753001432399,-678.60535169,0.00017176,2]
[373426863,1753001432409,-678.60535169,0.0001721,2]
[373426864,1753001432418,-4194.07721479,0.00017212,2]
[373426865,1753001432431,-495.83741527,0.00017212,2]
[373426866,1753001432441,-252.34,0.00017241,2]
[373426867,1753001432450,-678.60535169,0.00017245,2]
[373426868,1753001432460,-512.7619804,0.00017272,2]
[373426869,1753001432512,-295.575,0.00017272,2]
[373426870,1753001432533,-417.6630196,0.00017272,2]
[373426871,1753001432542,-678.60535169,0.00017279,2]
[373426872,1753001432552,-678.60535169,0.00017314,2]
[373426873,1753001432561,-257.0,0.00017334,2]
[373426874,1753001432570,-678.60535169,0.00017348,2]
[373426875,1753001432580,-373.0,0.00017356,2]
[373426876,1753001432589,-253.92243972,0.00017383,2]
[373426877,1753001432619,-424.68291197,0.00017383,2]
[373426878,1753001432628,-678.60535169,0.00017417,2]
[373426879,1753001432638,-387.26725,0.00017426,2]
[373426880,1753001432647,-1434.0,0.00017441,2]
[373426881,1753001432656,-26.08411746,0.00017452,2]
[373426882,1753001432667,-652.52123423,0.00017452,2]
[373426883,1753001432677,-257.0,0.00017463,2]
[373426884,1753001432686,-874.88521582,0.00017464,2]
[373426885,1753001432695,-168.0,0.0001747,2]
[373426886,1753001432704,-257.0,0.00017479,2]
[373426887,1753001432713,-650.49,0.00017482,2]
[373426888,1753001432722,-678.60535169,0.00017486,2]
[373426889,1753001432731,-441.0,0.000175,2]
[373426890,1753001432740,-678.60535169,0.00017521,2]
[373426891,1753001432749,-1749.0,0.00017526,2]
[373426892,1753001432758,-678.60535169,0.00017555,2]
[373426893,1753001432767,-150.0,0.00017568,2]
[373426894,1753001432776,-678.60535169,0.0001759,2]
[373426895,1753001432786,-168.0,0.00017595,2]
[373426896,1753001432795,-1000.0,0.000176,2]
[373426897,1753001432804,-1000.0,0.000176,2]
[373426898,1753001432814,-549.0,0.000176,3]
[373426899,1753001432823,-1000.0,0.000176,3]
[373426900,1753001432832,-274.1072,0.000176,2]
[373426901,1753001432842,-711.29696,0.000176,2]
[373426902,1753001432851,-1000.0,0.00017603,2]
[373426903,1753001432860,-2500.0,0.00017603,2]
[373426904,1753001432870,-1000.0,0.00017603,2]
[373426905,1753001432879,-300.0,0.00017603,2]
[373426906,1753001432889,-2500.0,0.00017603,2]
[373426907,1753001432898,-2063.17970161,0.0001761,2]
[373426908,1753001432907,-678.60535169,0.00017624,2]
[373426909,1753001432916,-150.0,0.00017626,2]
[373426910,1753001432926,-200.0,0.0001764,2]
[373426911,1753001432935,-678.60535169,0.00017659,2]
[373426912,1753001432944,-1520.15772893,0.00017678,2]
[373426913,1753001432953,-611.43309045,0.00017678,2]
[373426914,1753001432963,-2500.0,0.00017678,2]
[373426915,1753001432972,-1000.0,0.00017678,2]
[373426916,1753001432981,-1520.15772886,0.00017678,2]
[373426917,1753001432990,-1520.15772886,0.00017679,2]
[373426918,1753001432999,-1470.98935379,0.00017679,2]
[373426919,1753001433011,-49.16837507,0.00017679,2]
[373426920,1753001433020,-1520.15772886,0.0001768,2]
[373426921,1753001433030,-662.70633463,0.0001768,2]
[373426922,1753001433042,-857.45139423,0.0001768,2]
[373426923,1753001433053,-1520.15772886,0.00017681,2]
[373426924,1753001433065,-1520.15772886,0.00017681,2]
[373426925,1753001433075,-239.47389968,0.00017682,2]
[373426926,1753001433087,-691.98518583,0.00017682,2]
[373426927,1753001433099,-588.69864335,0.00017682,2]
[373426928,1753001433110,-3689.52785665,0.00017682,2]
[373426929,1753001433134,-577.93547874,0.00017682,2]
[373426930,1753001433145,-5000.0,0.00017682,2]
[373426931,1753001433155,-188.25188403,0.00017682,2]
[373426932,1753001433165,-16833.01872891,0.00017682,2]
[373426933,1753001433175,-210.94199707,0.00017682,2]
[373426934,1753001433185,-1520.15772886,0.00017682,2]
[373426935,1753001433194,-170.89839183,0.00017682,2]
[373426936,1753001433204,-496.77592897,0.00017682,2]
[373426937,1753001433213,-678.60535169,0.00017693,2]
[373426938,1753001433223,-1000.0,0.000177,2]
[373426939,1753001433233,-1000.0,0.000177,2]
[373426940,1753001433242,-1000.0,0.000177,2]
[373426941,1753001433253,-1000.0,0.000177,2]
[373426942,1753001433263,-952.57870315,0.000177,2]
[373426943,1753001433275,-249.42129685,0.000177,2]
[373426944,1753001433285,-1000.0,0.000177,2]
[373426945,1753001433295,-1000.0,0.000177,2]
[373426946,1753001433304,-207.25085811,0.000177,2]
[373426947,1753001433316,-792.74914189,0.000177,2]
[373426948,1753001433326,-1000.0,0.000177,3]
[373426949,1753001433336,-78.11085811,0.000177,3]
[373426950,1753001437121,-257.3652423,0.00017624,2]
[373426951,1753001437131,-921.88914189,0.000177,3]
[373426952,1753001437142,-181.04554528,0.000177,3]
[373426969,1753001437920,-818.95445472,0.000177,3]
[373426971,1753001437930,-370.94554528,0.000177,3]
[373426972,1753001437941,-629.05445472,0.000177,3]
[373426973,1753001437950,-377.63422888,0.000177,2]
[373426974,1753001437961,-353.57471264,0.000177,2]
[373426975,1753001437972,-268.79105848,0.000177,2]
[373426976,1753001437981,-1000.0,0.000177,3]
[373426977,1753001437990,-996.0,0.000177,2]
[373426978,1753001437999,-150.0,0.00017716,2]
[373426979,1753001438009,-711.29697,0.0001772,2]
[373426980,1753001438018,-678.60535169,0.00017728,2]
[373426981,1753001438027,-678.60535169,0.00017762,2]
[373426982,1753001438036,-191.6559592,0.00017772,2]
[373426983,1753001438045,-500.0,0.00017773,2]
[373426984,1753001438059,-513.62986482,0.00017773,2]
[373426985,1753001438068,-500.0,0.00017773,2]
[373426986,1753001438078,-500.0,0.00017773,2]
[373426987,1753001438087,-497.00364018,0.00017773,2]
[373426988,1753001438096,-502.24509308,0.00017773,2]
[373426989,1753001438105,-17863.8029226,0.00017778,2]
[373426990,1753001438114,-2077.4050456,0.00017778,2]
[373426991,1753001438124,-543.0737047,0.00017778,2]
[373426992,1753001438133,-29948.54790023,0.00017778,2]
[373426993,1753001438145,-11327.81313765,0.00017778,2]
[373426994,1753001438156,-17314.46580504,0.00017778,2]
[373426997,1753001438213,-1909.02133979,0.00017778,2]
[373427121,1753001439668,526.0,0.0003013,120]
[373427138,1753001439813,-238.02288006,0.00017767,2]
[373427140,1753001439823,-4987.36694333,0.00017778,2]
[373427178,1753001440181,-1749.2230533,0.00017778,2]
[373427212,1753001440580,-0.01808512,0.00017778,2]
[373427219,1753001440641,400.0,0.0003013,120]
[373427443,1753001442812,-3502.7,0.00017778,2]
[373427447,1753001442824,-2176.40179887,0.00017778,2]
[373427452,1753001442835,-1659.20538364,0.00017778,2]
[373427455,1753001442847,-3004.4974975,0.00017778,2]
[373427460,1753001442858,-5855.0,0.00017778,2]
[373427469,1753001442883,-1518.40198395,0.00017778,2]
[373427482,1753001442921,-539.04326546,0.00017778,2]
[373427491,1753001442975,-31487.37748322,0.00017778,2]
[373427493,1753001442984,-436.1400666,0.00017781,2]
[373427495,1753001442993,-1000.0,0.00017781,2]
[373427497,1753001443002,-300.0,0.00017781,2]
[373427499,1753001443011,-372.11493007,0.00017782,2]
[373427501,1753001443022,-12183.14421319,0.00017782,2]
[373427503,1753001443031,-10461.47344919,0.00017782,2]
[373427505,1753001443047,-19658.94474062,0.00017782,2]
[373427510,1753001443086,-1131.20558233,0.00017782,2]
[373427512,1753001443097,-7902.27846636,0.00017782,2]
[373427514,1753001443108,-2081.80298648,0.00017782,2]
[373427516,1753001443119,-2337.65274746,0.00017782,2]
[373427520,1753001443141,-594.0,0.00017782,2]
[373427522,1753001443152,-370.08,0.00017782,2]
[373427524,1753001443163,-3861.88752228,0.00017782,2]
[373427841,1753001446280,-3391.8667962,0.00017778,2]
[373427843,1753001446293,-9012.5846386,0.00017782,2]
[373427845,1753001446304,-859.68,0.00017782,2]
[373427848,1753001446330,-2198.27025127,0.00017782,2]
[373427851,1753001446345,-522.50028364,0.00017782,2]
[373427854,1753001446361,-278605.13029891,0.00017782,2]
[373427856,1753001446370,-171339.92380847,0.00017782,2]
[373427858,1753001446381,-481.34677178,0.00017782,2]
[373427861,1753001446407,-1151.49714787,0.00017782,2]
[373427863,1753001446418,-23167.46928757,0.00017782,2]
[373427868,1753001446455,-253.25000018,0.00017682,2]
[373427871,1753001446465,-866.61899778,0.00017682,2]
[373428359,1753001495054,1398.0,0.0003013,120]
[373428360,1753001495904,962.5599825,0.0003013,120]
[373428361,1753001506617,245.46,0.000229,31]
[373428362,1753001506684,245.46,0.000229,31]
[373428363,1753001506815,245.46,0.000229,31]
[373428364,1753001506909,245.46,0.000229,31]
[373428365,1753001506964,245.46,0.000229,31]
[373428366,1753001507029,245.46,0.000229,31]
[373428367,1753001507094,245.46,0.000229,31]
[373428368,1753001507157,245.46,0.000229,31]
[373428369,1753001507217,245.46,0.000229,31]
[373428370,1753001507283,245.46,0.000229,31]
[373428371,1753001507350,245.46,0.000229,31]
[373428372,1753001507408,245.46,0.000229,31]
[373428373,1753001507466,245.46,0.000229,31]
[373428374,1753001507528,245.46,0.000229,31]
[373428375,1753001507596,245.46,0.000229,31]
[373428376,1753001507921,245.46,0.000229,31]
[373428377,1753001562813,7699.6,0.00030137,120]
[373428378,1753001574088,2573.95454669,0.0003,120]
[373428379,1753001580359,1025.95,0.00030136,120]
[373428384,1753001979799,150.0,0.00030136,120]
[373428386,1753002118591,203.75,0.000229,31]
[373428387,1753002118654,203.75,0.000229,31]
[373428388,1753002118725,203.75,0.000229,31]
[373428389,1753002118783,203.75,0.000229,31]
[373428390,1753002118842,203.75,0.000229,31]
[373428391,1753002118904,203.75,0.000229,31]
[373428392,1753002118966,203.75,0.000229,31]
[373428393,1753002119032,203.75,0.000229,31]
[373428394,1753002119084,203.75,0.000229,31]
[373428395,1753002119136,203.75,0.000229,31]
[373428396,1753002119202,203.75,0.000229,31]
[373428397,1753002119504,203.75,0.000229,31]
[373428398,1753002119573,203.75,0.000229,31]
[373428399,1753002119633,203.75,0.000229,31]
[373428400,1753002119711,203.75,0.000229,31]
[373428401,1753002119796,203.75,0.000229,31]
[373428403,1753002309644,150.0,0.00016003,2]
[373428404,1753002313403,127.50855513,0.00016003,2]
[373428405,1753002362671,511.0,0.00015496,2]
[373428408,1753002448646,513.0,0.00015496,2]
[373428409,1753002457340,413.0,0.0003013,120]
[373428410,1753002459540,500.50767314,0.0003013,120]
[373428411,1753002487403,231.3,0.00013699,2]
[373428413,1753002522788,-22.49144487,0.00016003,2]
[373428414,1753002522811,-150.0,0.00016003,2]
[373428415,1753002522834,-150.0,0.00016003,2]
[373428416,1753002522856,-190.50855513,0.00016252,2]
[373428423,1753002538828,513.0,0.00015496,2]
[373428428,1753002631928,-1809.49144487,0.00016252,2]
[373428429,1753002631939,-424.03,0.00016267,2]
[373428430,1753002631948,-1153.47,0.00016355,2]
[373428431,1753002631959,-753.5,0.00016361,2]
[373428432,1753002631970,-1000.0,0.00016368,2]
[373428433,1753002631980,-1200.0,0.00016376,2]
[373428434,1753002631990,-300.0,0.00016376,2]
[373428435,1753002631999,-300.0,0.00016376,2]
[373428436,1753002632009,-196.0,0.00016377,2]
[373428437,1753002632019,-15996.21877823,0.00016378,2]
[373428438,1753002632031,-458.99100647,0.00016378,2]
[373428439,1753002632044,-5060.81962041,0.00016378,2]
[373428440,1753002632056,-1950.94948608,0.00016378,2]
[373428441,1753002632081,-433.02110881,0.00016378,2]
[373428442,1753002632092,-666.0,0.00016477,2]
[373428443,1753002632101,-19971.15,0.00016525,2]
[373428444,1753002632111,-167.1801,0.00016541,2]
[373428445,1753002632121,-150.0,0.00016558,2]
[373428446,1753002632130,-159.0,0.0001663,3]
[373428447,1753002632140,-151.0,0.0001663,2]